bitfinex/quotes_BTCUSD_20230113
["timestamp","ask_amount","ask_price","bid_price","bid_amount"]
[1673634322144,0.20797763,19296.0,19295.0,0.84856703]
[1673634322384,0.20797763,19296.0,19295.0,1.15749182]
[1673634323131,0.20797763,19296.0,19295.0,1.01949182]
[1673634323380,0.20897763,19296.0,19295.0,0.84856703]
[1673634323638,0.20897763,19296.0,19295.0,0.71056703]
[1673634323885,0.20997763,19296.0,19295.0,1.36783503]
[1673634324877,0.20997763,19296.0,19295.0,1.15882484]
[1673634325117,0.20997763,19296.0,19295.0,0.52560617]
[1673634325371,0.20997763,19296.0,19295.0,0.68022025]
[1673634325628,0.20997763,19296.0,19295.0,0.83438484]
[1673634327414,0.20997763,19296.0,19295.0,0.83475934]
[1673634327656,0.20997763,19296.0,19295.0,0.52512703]
[1673634328841,0.20997763,19296.0,19294.0,0.51827]
[1673634328842,0.2649703,19295.0,19294.0,0.518278]
[1673634329116,0.2649703,19295.0,19294.0,0.98126054]
[1673634329368,0.2649703,19295.0,19294.0,1.82398254]
[1673634329845,0.2779703,19295.0,19294.0,1.86898254]
[1673634331489,0.2779703,19295.0,19294.0,1.406]
[1673634332249,0.2779703,19295.0,19294.0,1.87075321]
[1673634332751,0.2779703,19295.0,19294.0,1.35247521]
[1673634332999,0.44264491,19295.0,19294.0,0.045]
[1673634333242,1.032538,19295.0,19294.0,0.58744848]
[1673634334000,1.032538,19295.0,19294.0,0.27748319]
[1673634334258,2.01792279,19295.0,19294.0,0.15502479]
[1673634334510,2.01792279,19295.0,19294.0,0.041]
[1673634334757,2.03292279,19295.0,19294.0,0.041]
[1673634335495,1.54242765,19295.0,19294.0,0.041]
[1673634335738,0.724238,19295.0,19294.0,0.19602479]
[1673634335985,1.024238,19295.0,19294.0,0.19602479]
[1673634336477,0.724238,19295.0,19294.0,0.19602479]
[1673634336727,0.724238,19295.0,19294.0,0.041]
[1673634336728,1.024238,19295.0,19294.0,0.041]
[1673634336965,1.124238,19295.0,19294.0,0.19602479]
[1673634337199,0.94624474,19295.0,19294.0,0.19602479]
[1673634337712,1.124238,19295.0,19294.0,0.19602479]
[1673634337961,0.724238,19295.0,19294.0,0.42850798]
[1673634338174,0.724238,19295.0,19294.0,0.19602479]
[1673634339445,1.024238,19295.0,19294.0,0.19602479]
[1673634339659,0.724238,19295.0,19294.0,0.041]
[1673634339929,1.124238,19295.0,19294.0,0.041]
[1673634340915,1.59034045,19295.0,19294.0,0.041]
[1673634342135,1.383372,19295.0,19294.0,0.041]
[1673634342628,2.060774,19295.0,19294.0,0.041]
[1673634343152,2.160774,19295.0,19294.0,0.041]
[1673634348535,2.56156914,19295.0,19294.0,0.041]
[1673634349057,2.56156914,19295.0,19294.0,0.0409046]
[1673634349519,2.69944295,19295.0,19294.0,0.0409046]
[1673634350776,2.56156914,19295.0,19294.0,0.0409046]
[1673634351292,2.61570989,19295.0,19294.0,0.0409046]
[1673634352014,2.61570989,19295.0,19294.0,0.0380046]
[1673634352263,2.88480989,19295.0,19294.0,0.0380046]
[1673634352766,1.850474,19295.0,19294.0,0.0380046]
[1673634353543,1.950474,19295.0,19294.0,0.0380046]
[1673634354772,2.250474,19295.0,19294.0,0.0380046]
[1673634355027,2.53684964,19295.0,19294.0,0.0380046]
[1673634355282,2.62654964,19295.0,19294.0,0.0380046]
[1673634355771,3.16932485,19295.0,19294.0,0.0380046]
[1673634356048,3.23196676,19295.0,19294.0,0.0380046]
[1673634356291,3.76486676,19295.0,19294.0,0.0380046]
[1673634356535,3.74986676,19295.0,19290.0,0.00019]
[1673634356780,0.2678,19291.0,19290.0,0.00019]
[1673634357023,2.222928,19291.0,19290.0,0.00019]
[1673634357261,2.222928,19291.0,19289.0,0.01163784]
[1673634357472,2.16543294,19291.0,19289.0,0.01163784]
[1673634357731,1.655128,19291.0,19289.0,0.01163784]
[1673634357985,0.1794,19290.0,19289.0,0.16666263]
[1673634358229,1.216206,19290.0,19289.0,0.01163784]
[1673634358715,1.42222368,19290.0,19289.0,0.20166263]
[1673634358934,1.42222368,19290.0,19289.0,0.01163784]
[1673634359210,2.21404455,19290.0,19289.0,0.04663784]
[1673634359702,2.048609,19290.0,19289.0,0.04663784]
[1673634360963,2.26000009,19290.0,19289.0,0.04663784]
[1673634361208,2.048609,19290.0,19289.0,0.04663784]
[1673634361448,1.98192318,19290.0,19289.0,0.04663784]
[1673634361731,1.98192318,19290.0,19289.0,0.43414582]
[1673634361977,0.94511718,19290.0,19289.0,0.43414582]
[1673634362210,0.42671418,19290.0,19289.0,0.91352632]
[1673634362461,0.42671418,19290.0,19289.0,1.9254036]
[1673634362462,0.014,19290.0,19289.0,1.9254036]
[1673634362691,0.01293798,19290.0,19289.0,2.4438336]
[1673634362940,0.01293798,19290.0,19289.0,2.0564902]
[1673634364629,0.01293798,19290.0,19289.0,2.1458902]
[1673634364877,0.01293798,19290.0,19289.0,2.53318856]
[1673634365119,0.01293798,19290.0,19289.0,2.1458902]
[1673634365858,0.01293798,19290.0,19289.0,2.71064341]
[1673634366857,0.01293798,19290.0,19289.0,2.71108598]
[1673634367105,0.01293798,19290.0,19289.0,2.61108598]
[1673634369107,0.01293798,19290.0,19289.0,2.61136269]
[1673634370192,0.01293798,19290.0,19289.0,3.12979269]
[1673634370455,0.01293798,19290.0,19289.0,2.66476277]
[1673634370936,0.01293798,19290.0,19289.0,3.34809562]
[1673634374396,0.01293798,19290.0,19289.0,2.66476277]
[1673634375942,0.01293798,19290.0,19289.0,2.64608681]
[1673634377416,0.01293798,19290.0,19289.0,2.21411041]
[1673634377915,0.01293798,19290.0,19289.0,2.73182541]
[1673634378413,0.01164419,19290.0,19289.0,2.73182541]
[1673634382393,0.01164419,19290.0,19289.0,2.53392541]
[1673634382637,0.01164419,19290.0,19289.0,3.22063133]
[1673634383137,0.01164419,19290.0,19289.0,2.58692214]
[1673634383388,0.01164419,19290.0,19289.0,2.53392541]
[1673634385148,0.01164419,19290.0,19289.0,2.70312245]
[1673634385410,0.23444264,19290.0,19289.0,2.18424988]
[1673634385657,0.23444264,19290.0,19289.0,0.97890784]
[1673634385902,0.11291419,19290.0,19289.0,0.51201994]
[1673634386159,1.14972019,19290.0,19289.0,0.04663784]
[1673634386402,1.39946102,19290.0,19289.0,0.04663784]
[1673634387110,0.88105802,19290.0,19289.0,0.04663784]
[1673634387637,0.36265502,19290.0,19289.0,0.04663784]
[1673634387886,0.26138502,19290.0,19289.0,0.51201994]
[1673634388632,0.26138502,19290.0,19289.0,0.83645994]
[1673634390615,0.26138502,19290.0,19289.0,0.37107784]
[1673634390834,0.26138502,19290.0,19289.0,0.8364605]
[1673634391541,0.77978802,19290.0,19289.0,0.5120205]
[1673634391823,0.77978802,19290.0,19289.0,0.04663784]
[1673634392093,0.77978802,19290.0,19289.0,0.5120205]
[1673634392607,0.77978802,19290.0,19289.0,0.04663784]
[1673634393404,0.26138502,19290.0,19289.0,0.5120205]
[1673634394583,0.26138502,19290.0,19289.0,0.04663784]
[1673634395061,0.63131719,19290.0,19289.0,0.04663784]
[1673634395296,0.83454498,19290.0,19289.0,0.04663784]
[1673634395535,0.73327498,19290.0,19289.0,0.04663784]
[1673634396029,1.25167798,19290.0,19289.0,0.04663784]
[1673634396495,1.04845019,19290.0,19289.0,0.04663784]
[1673634397251,1.31364682,19290.0,19289.0,0.04663784]
[1673634397759,0.79524382,19290.0,19289.0,0.5120205]
[1673634398254,0.27684082,19290.0,19289.0,0.8364605]
[1673634399571,0.27684082,19290.0,19289.0,1.49763784]
[1673634400073,0.27676287,19290.0,19289.0,1.49763784]
[1673634400314,0.27676287,19290.0,19289.0,2.18454988]
[1673634400573,0.01156624,19290.0,19289.0,2.28454988]
[1673634401065,0.01156624,19290.0,19289.0,3.32472878]
[1673634402841,0.01156624,19290.0,19289.0,2.63711674]
[1673634406342,0.01156624,19290.0,19289.0,2.63771674]
[1673634406590,0.01156624,19290.0,19289.0,2.72741674]
[1673634408092,0.01156624,19290.0,19289.0,2.73591674]
[1673634408565,0.01040962,19290.0,19289.0,2.73591674]
[1673634410752,0.01040962,19290.0,19289.0,2.21416784]
[1673634411019,0.01040962,19290.0,19289.0,2.30326784]
[1673634411262,0.01040962,19290.0,19289.0,2.60326784]
[1673634411506,0.01040962,19290.0,19289.0,3.18707439]
[1673634412227,0.01040962,19290.0,19289.0,2.88707439]
[1673634418149,0.01040962,19290.0,19289.0,2.79797439]
[1673634418903,0.22554157,19290.0,19289.0,1.92636784]
[1673634419146,0.22554157,19290.0,19289.0,2.66994888]
[1673634419395,0.22554157,19290.0,19289.0,1.98333784]
[1673634420142,0.22554157,19290.0,19289.0,2.08333784]
[1673634421418,0.22554157,19290.0,19289.0,1.98333784]
[1673634421951,0.22554157,19290.0,19289.0,2.66988728]
[1673634423399,0.22554157,19290.0,19289.0,2.66982876]
[1673634424717,0.22554157,19290.0,19289.0,2.76966012]
[1673634424952,0.22554157,19290.0,19289.0,2.02636784]
[1673634424953,0.01040962,19290.0,19289.0,2.02636784]
[1673634425227,2.19558814,19294.0,19290.0,0.1]
[1673634425467,0.20096698,19292.0,19291.0,0.46490598]
[1673634426477,0.20096698,19292.0,19291.0,0.32444]
[1673634426984,0.20096698,19292.0,19291.0,0.46496449]
[1673634427238,0.4841,19294.0,19291.0,2.04765473]
[1673634427505,0.72854261,19294.0,19293.0,0.46486121]
[1673634427768,0.72854261,19294.0,19293.0,1.361047]
[1673634427769,0.4841,19294.0,19293.0,1.361047]
[1673634428023,0.4841,19294.0,19293.0,2.04750973]
[1673634428271,0.00018,19295.0,19293.0,1.879369]
[1673634428534,0.00018,19295.0,19294.0,0.99508716]
[1673634428772,0.00018,19295.0,19294.0,2.54997216]
[1673634429030,0.00572941,19296.0,19294.0,1.863845]
[1673634429279,0.00572941,19296.0,19295.0,0.8888293]
[1673634429521,0.00572941,19296.0,19295.0,2.96519395]
[1673634429769,0.00572941,19296.0,19295.0,2.33393116]
[1673634430015,0.00572941,19296.0,19295.0,2.1740367]
[1673634430267,0.01772941,19296.0,19295.0,2.89009616]
[1673634430512,0.00572941,19296.0,19295.0,2.89009616]
[1673634430759,0.01772941,19296.0,19295.0,2.94309616]
[1673634431011,0.01772941,19296.0,19295.0,3.03229616]
[1673634431509,0.00572941,19296.0,19295.0,2.97929616]
[1673634431756,0.01772941,19296.0,19295.0,2.6162367]
[1673634432256,0.01772941,19296.0,19295.0,2.3162367]
[1673634432507,0.01772941,19296.0,19295.0,3.03208554]
[1673634433223,0.01173919,19296.0,19295.0,3.03208554]
[1673634434438,0.01173919,19296.0,19295.0,3.43638554]
[1673634434957,0.01173919,19296.0,19295.0,3.48793153]
[1673634435438,1.9e-07,19296.0,19295.0,3.48793153]
[1673634435676,0.00846484,19297.0,19295.0,3.48793153]
[1673634435936,0.00846484,19297.0,19296.0,2.1414504]
[1673634436174,0.00846484,19297.0,19296.0,3.2779344]
[1673634436657,0.01546484,19297.0,19296.0,3.2779344]
[1673634436899,0.00846484,19297.0,19296.0,3.2779344]
[1673634437149,0.01346484,19297.0,19296.0,3.4079344]
[1673634437423,0.00846484,19297.0,19296.0,3.96121947]
[1673634437685,0.01346484,19297.0,19296.0,4.09121947]
[1673634439013,0.01346484,19297.0,19296.0,3.67523577]
[1673634439498,0.01346484,19297.0,19296.0,4.09109713]
[1673634439755,0.01346484,19297.0,19296.0,3.67523577]
[1673634440535,0.01346484,19297.0,19296.0,4.19347777]
[1673634440784,0.00890377,19297.0,19296.0,4.19347777]
[1673634441000,0.00890377,19297.0,19296.0,4.6094064]
[1673634441754,0.00890377,19297.0,19296.0,5.0774064]
[1673634442254,0.00890377,19297.0,19296.0,5.12895239]
[1673634442756,0.005,19297.0,19296.0,5.12895239]
[1673634442996,0.00927456,19300.0,19297.0,0.1]
[1673634443249,0.00927456,19300.0,19299.0,0.46182112]
[1673634443497,0.00927456,19300.0,19299.0,3.57901074]
[1673634443737,0.00909456,19300.0,19299.0,3.58751074]
[1673634443987,0.00929055,19301.0,19300.0,0.1]
[1673634444235,0.00929055,19301.0,19300.0,4.36233587]
[1673634444479,0.00943649,19302.0,19300.0,4.56318977]
[1673634444733,0.00943649,19302.0,19301.0,1.63275806]
[1673634444974,0.00943649,19302.0,19301.0,3.12546537]
[1673634445503,0.00943649,19302.0,19301.0,3.58707906]
[1673634446520,0.00955599,19303.0,19301.0,3.26346537]
[1673634446764,0.00955599,19303.0,19302.0,2.33828721]
[1673634447015,0.00955599,19303.0,19302.0,3.86811255]
[1673634447259,0.00955599,19303.0,19302.0,4.4234439]
[1673634447507,0.00955599,19303.0,19302.0,3.96982584]
[1673634447763,0.00955599,19303.0,19302.0,3.61997683]
[1673634448014,0.01155599,19303.0,19302.0,4.16289208]
[1673634448500,0.0104004,19303.0,19302.0,4.16289208]
[1673634448992,0.0104004,19303.0,19302.0,4.053157]
[1673634449523,0.0104004,19303.0,19302.0,4.00161101]
[1673634450002,0.0104004,19303.0,19302.0,3.84805924]
[1673634450243,0.0104004,19303.0,19302.0,3.61751616]
[1673634450487,0.0104004,19303.0,19302.0,4.00161101]
[1673634450987,0.0104004,19303.0,19302.0,4.31601101]
[1673634451232,0.0104004,19303.0,19302.0,3.93191616]
[1673634451741,0.0104004,19303.0,19302.0,4.31601101]
[1673634452487,0.0104004,19303.0,19302.0,4.73298928]
[1673634452735,0.0104004,19303.0,19302.0,4.42579082]
[1673634452987,0.0104004,19303.0,19302.0,4.73295721]
[1673634453232,0.0104004,19303.0,19302.0,4.31597894]
[1673634453470,0.0104004,19303.0,19302.0,4.30597894]
[1673634454197,0.0104004,19303.0,19302.0,4.30606581]
[1673634454437,0.0104004,19303.0,19302.0,4.72311247]
[1673634454708,0.0104004,19303.0,19302.0,4.43525123]
[1673634455960,0.0104004,19303.0,19302.0,4.01279103]
[1673634456225,0.0084004,19303.0,19302.0,3.87379103]
[1673634456461,0.00756037,19303.0,19302.0,3.88708123]
[1673634456979,0.00756037,19303.0,19302.0,4.27093211]
[1673634457490,0.00756037,19303.0,19302.0,3.88708123]
[1673634457752,0.00756037,19303.0,19302.0,4.04168071]
[1673634457991,0.00756037,19303.0,19302.0,3.81159638]
[1673634458245,0.00756037,19303.0,19302.0,4.33071282]
[1673634458987,0.00756037,19303.0,19302.0,3.94683976]
[1673634459242,0.00756037,19303.0,19302.0,4.17716659]
[1673634459502,0.00756037,19303.0,19302.0,3.69703584]
[1673634459503,0.21786531,19303.0,19302.0,3.69703584]
[1673634459758,0.00756037,19303.0,19302.0,2.53568831]
[1673634460256,0.00756037,19303.0,19302.0,2.6892972]
[1673634460511,0.00756037,19303.0,19302.0,2.5512972]
[1673634460762,0.00756037,19303.0,19302.0,2.78169328]
[1673634461017,0.00856037,19303.0,19302.0,2.91969328]
[1673634461260,0.00856037,19303.0,19302.0,2.77458439]
[1673634462249,0.00856037,19303.0,19302.0,2.92820417]
[1673634462486,0.00856037,19303.0,19302.0,2.92819948]
[1673634463232,0.00856037,19303.0,19302.0,3.08170314]
[1673634463473,0.00856037,19303.0,19302.0,3.23518012]
[1673634464230,0.00856037,19303.0,19302.0,3.28258012]
[1673634464436,0.00770434,19303.0,19302.0,3.80881282]
[1673634464961,0.00770434,19303.0,19302.0,3.50169407]
[1673634465461,0.00770434,19303.0,19302.0,3.28315226]
[1673634466593,0.00770434,19303.0,19302.0,2.59158831]
[1673634466813,0.00770434,19303.0,19302.0,2.97616017]
[1673634467057,0.00770434,19303.0,19302.0,3.05282133]
[1673634468966,0.00770434,19303.0,19302.0,2.59158831]
[1673634469467,0.00770434,19303.0,19302.0,2.37247187]
[1673634469702,0.00770434,19303.0,19302.0,3.03785248]
[1673634469930,0.00770434,19303.0,19302.0,2.73785248]
[1673634470225,0.00770434,19303.0,19302.0,3.03785248]
[1673634471163,0.00770434,19303.0,19302.0,3.71976023]
[1673634471897,0.00770434,19303.0,19302.0,3.41976023]
[1673634472116,0.00770434,19303.0,19302.0,2.73785248]
[1673634472592,0.00770434,19303.0,19302.0,3.20051744]
[1673634472593,0.00693391,19303.0,19302.0,3.20051744]
[1673634473577,0.00693391,19303.0,19302.0,2.52654996]
[1673634474263,0.00693391,19303.0,19302.0,2.52704175]
[1673634474966,0.21044439,19303.0,19302.0,2.52704175]
[1673634475752,0.21044439,19303.0,19302.0,1.68422696]
[1673634475976,0.21044439,19303.0,19302.0,1.221562]
[1673634477240,0.21144439,19303.0,19302.0,1.22205379]
[1673634477462,0.21144439,19303.0,19302.0,2.00915875]
[1673634477710,0.00793391,19303.0,19302.0,2.52723975]
[1673634477956,0.00793391,19303.0,19302.0,2.57075112]
[1673634479414,0.00793391,19303.0,19302.0,3.25265887]
[1673634479653,0.00793391,19303.0,19302.0,2.57075112]
[1673634479904,0.00793391,19303.0,19302.0,3.25265887]
[1673634481433,0.00793391,19303.0,19302.0,3.11416708]
[1673634481434,0.00593391,19303.0,19302.0,3.11416708]
[1673634481679,0.00793391,19303.0,19302.0,2.57125933]
[1673634482956,0.00793391,19303.0,19302.0,3.25316708]
[1673634483205,0.00793391,19303.0,19302.0,2.68338293]
[1673634486699,0.00793391,19303.0,19302.0,3.31985241]
[1673634486942,0.00793391,19303.0,19302.0,2.63598293]
[1673634493422,0.00793391,19303.0,19302.0,2.75864294]
[1673634493869,0.00781525,19303.0,19302.0,2.75864294]
[1673634495160,0.00781525,19303.0,19302.0,2.65864294]
[1673634496642,0.00781525,19303.0,19302.0,2.02667479]
[1673634496893,0.00781525,19303.0,19302.0,2.6773205]
[1673634497659,0.00781525,19303.0,19302.0,2.02667479]
[1673634497900,0.00781525,19303.0,19302.0,2.80370797]
[1673634498152,0.00781525,19303.0,19302.0,3.10370797]
[1673634498637,0.00781525,19303.0,19302.0,2.42667479]
[1673634498885,0.00781525,19303.0,19302.0,3.0990478]
[1673634499145,0.00781525,19303.0,19302.0,3.3252805]
[1673634500150,0.00781525,19303.0,19302.0,3.6252805]
[1673634500640,0.00781525,19303.0,19302.0,3.3252805]
[1673634502112,0.00781525,19303.0,19302.0,3.2252805]
[1673634503825,0.00781525,19303.0,19302.0,2.026183]
[1673634504074,0.25107005,19303.0,19302.0,2.3773541]
[1673634504567,0.25107005,19303.0,19302.0,1.8592731]
[1673634504820,0.25107005,19303.0,19302.0,1.175162]
[1673634505560,0.25107005,19303.0,19302.0,1.8592731]
[1673634506323,0.25107005,19303.0,19302.0,1.175162]
[1673634507582,0.25107005,19303.0,19302.0,1.693243]
[1673634510762,0.25107005,19303.0,19302.0,2.3773541]
[1673634511007,0.25107005,19303.0,19302.0,1.693243]
[1673634511254,0.25107005,19303.0,19302.0,2.3773541]
[1673634511989,0.25107005,19303.0,19302.0,1.693243]
[1673634513023,0.00781525,19303.0,19302.0,1.693243]
[1673634513268,0.00781525,19303.0,19302.0,2.3773541]
[1673634514293,0.32516305,19303.0,19302.0,1.11974766]
[1673634515002,0.21257305,19303.0,19302.0,0.657081]
[1673634517254,0.21257305,19303.0,19302.0,1.12007672]
[1673634517496,0.21257305,19303.0,19302.0,0.60199572]
[1673634518235,0.21257305,19303.0,19302.0,0.139]
[1673634519221,0.21257305,19303.0,19302.0,0.657081]
[1673634520238,0.21257305,19303.0,19302.0,1.12056851]
[1673634521735,0.21257305,19303.0,19302.0,1.63864951]
[1673634521981,0.00781525,19303.0,19302.0,1.63864951]
[1673634522229,0.00775368,19303.0,19302.0,2.79771163]
[1673634522745,0.00775368,19303.0,19302.0,2.69771163]
[1673634523494,0.00775368,19303.0,19302.0,2.69721984]
[1673634523985,0.00775368,19303.0,19302.0,2.37327163]
[1673634524226,0.00775368,19303.0,19302.0,2.69771163]
[1673634527984,0.00775368,19303.0,19302.0,2.69721984]
[1673634528484,0.00775368,19303.0,19302.0,3.15951953]
[1673634528734,0.00775368,19303.0,19302.0,2.69721984]
[1673634528979,0.19226054,19303.0,19302.0,0.657081]
[1673634529225,0.19226054,19303.0,19302.0,0.52442622]
[1673634529469,0.19226054,19303.0,19302.0,0.139]
[1673634530486,0.19226054,19303.0,19302.0,0.657081]
[1673634530977,0.19226054,19303.0,19302.0,1.175162]
[1673634531237,0.19226054,19303.0,19302.0,1.63756237]
[1673634531482,0.00775368,19303.0,19302.0,2.67201676]
[1673634532741,0.00775368,19303.0,19302.0,3.13448868]
[1673634533249,0.00775368,19303.0,19302.0,2.48015492]
[1673634534713,0.00775368,19303.0,19302.0,2.017683]
[1673634534955,0.00775368,19303.0,19302.0,2.55104258]
[1673634535222,0.00775368,19303.0,19302.0,3.23515368]
[1673634537720,0.00775368,19303.0,19302.0,2.55104258]
[1673634537960,0.00775368,19303.0,19302.0,1.693243]
[1673634538222,0.22648903,19303.0,19302.0,1.693243]
[1673634538716,0.22648903,19303.0,19302.0,2.15635207]
[1673634539997,0.22648903,19303.0,19302.0,1.63827107]
[1673634540482,0.22648903,19303.0,19302.0,1.175162]
[1673634541966,0.22648903,19303.0,19302.0,1.63852926]
[1673634543195,0.22648903,19303.0,19302.0,1.63902105]
[1673634543690,0.22648903,19303.0,19302.0,1.17565379]
[1673634543936,0.22648903,19303.0,19302.0,1.63852926]
[1673634551371,0.22648903,19303.0,19302.0,1.175162]
[1673634551863,0.22648903,19303.0,19302.0,1.17507559]
[1673634552104,0.22648903,19303.0,19302.0,1.63844285]
[1673634553302,0.22648903,19303.0,19302.0,0.60228085]
[1673634553545,0.22648903,19303.0,19302.0,1.63844285]
[1673634558740,0.22648903,19303.0,19302.0,1.96288285]
[1673634558993,0.22648903,19303.0,19302.0,1.49951559]
[1673634559218,0.22648903,19303.0,19302.0,1.96314537]
[1673634559914,0.22648903,19303.0,19302.0,1.49951559]
[1673634560207,0.00775368,19303.0,19302.0,1.96317432]
[1673634560456,0.00775368,19303.0,19302.0,2.11759659]
[1673634560697,0.00775368,19303.0,19302.0,2.80170769]
[1673634561217,0.00775368,19303.0,19302.0,2.11759659]
[1673634562195,0.00775368,19303.0,19302.0,3.07030769]
[1673634562452,0.00775368,19303.0,19302.0,3.72207165]
[1673634562700,0.00775368,19303.0,19302.0,2.38619659]
[1673634562972,0.00775368,19303.0,19302.0,2.87634071]
[1673634563211,0.00775368,19303.0,19302.0,3.00984071]
[1673634565175,0.00775368,19303.0,19302.0,2.51969659]
[1673634565410,0.00775368,19303.0,19302.0,3.06415459]
[1673634565648,0.00775368,19303.0,19302.0,2.51969659]
[1673634565892,0.00775368,19303.0,19302.0,3.14298031]
[1673634567372,0.00775368,19303.0,19302.0,2.51969659]
[1673634567586,0.00775368,19303.0,19302.0,3.17184851]
[1673634568015,0.00775368,19303.0,19302.0,1.76731559]
[1673634568016,0.21805862,19303.0,19302.0,1.76731559]
[1673634568230,0.45992708,19303.0,19302.0,0.13891359]
[1673634568448,0.24118939,19303.0,19302.0,0.5255639]
[1673634569101,0.21938353,19303.0,19302.0,0.5255639]
[1673634570398,0.21938353,19303.0,19302.0,0.83482046]
[1673634570858,0.21938353,19303.0,19302.0,0.5255639]
[1673634571162,0.21938353,19303.0,19302.0,0.83482769]
[1673634571885,0.12034368,19303.0,19302.0,0.83482769]
[1673634572133,0.25464368,19303.0,19302.0,0.83482769]
[1673634572377,0.45657168,19303.0,19302.0,0.83482769]
[1673634572617,0.97462568,19303.0,19302.0,0.83482769]
[1673634573330,0.87269768,19303.0,19302.0,0.83482769]
[1673634573614,1.05279416,19303.0,19302.0,0.83482769]
[1673634573859,1.39075168,19303.0,19302.0,0.83482769]
[1673634574099,1.4947428,19303.0,19302.0,0.83482769]
[1673634574351,0.3460448,19303.0,19302.0,0.83482769]
[1673634574600,0.00775368,19303.0,19302.0,1.63905596]
[1673634575098,0.21936364,19303.0,19302.0,0.65699459]
[1673634576054,0.21936364,19303.0,19302.0,0.13891359]
[1673634579424,0.21936364,19303.0,19302.0,0.52552867]
[1673634581452,0.21936364,19303.0,19302.0,0.13891359]
[1673634581958,0.21936364,19303.0,19302.0,0.52571726]
[1673634588323,0.31936364,19303.0,19302.0,0.52571726]
[1673634588539,0.21936364,19303.0,19302.0,0.52571726]
[1673634590483,0.21936364,19303.0,19302.0,0.83521085]
[1673634591204,0.21936364,19303.0,19302.0,0.52571726]
[1673634591939,0.21936364,19303.0,19302.0,0.83519443]
[1673634592626,0.21936364,19303.0,19302.0,0.52571726]
[1673634592818,0.21936364,19303.0,19302.0,0.13891359]
[1673634593866,0.21936364,19303.0,19302.0,0.52579025]
[1673634594092,0.21936364,19303.0,19302.0,0.13891359]
[1673634594736,0.21936364,19303.0,19302.0,0.52589587]
[1673634595165,0.21936364,19303.0,19302.0,1.12097496]
[1673634595376,0.21936364,19303.0,19302.0,1.63905596]
[1673634596034,0.21795979,19303.0,19302.0,1.63905596]
[1673634597281,0.21795979,19303.0,19302.0,1.17507559]
[1673634597866,0.21795979,19303.0,19302.0,1.63905596]
[1673634598092,0.00634983,19303.0,19302.0,2.42063604]
[1673634598303,0.00634983,19303.0,19302.0,2.47473667]
[1673634598529,0.00634983,19303.0,19302.0,2.93880661]
[1673634598734,0.00634983,19303.0,19302.0,2.47473667]
[1673634600041,0.00634983,19303.0,19302.0,2.47398068]
[1673634600928,0.00634983,19303.0,19302.0,2.37398068]
[1673634601155,0.00634983,19303.0,19302.0,2.83797589]
[1673634601586,0.00634983,19303.0,19302.0,2.37398068]
[1673634601843,0.00634983,19303.0,19302.0,2.83801423]
[1673634605502,0.00634983,19303.0,19302.0,2.37398068]
[1673634610739,0.00634983,19303.0,19302.0,3.0588725]
[1673634611713,0.00634983,19303.0,19302.0,2.37398068]
[1673634612683,0.3362398,19303.0,19302.0,1.63931891]
[1673634613677,0.3362398,19303.0,19302.0,1.12123791]
[1673634615378,0.2236498,19303.0,19302.0,1.12123791]
[1673634616892,0.2216498,19303.0,19302.0,0.98308031]
[1673634617198,0.2246498,19303.0,19302.0,1.12208031]
[1673634620161,0.2246498,19303.0,19302.0,0.657081]
[1673634621172,0.2246498,19303.0,19302.0,1.175162]
[1673634623160,0.2246498,19303.0,19302.0,1.275162]
[1673634623410,0.2246498,19303.0,19302.0,1.175162]
[1673634629698,0.2246498,19303.0,19302.0,0.657081]
[1673634630669,0.22455798,19303.0,19302.0,1.86005382]
[1673634630897,0.00725801,19303.0,19302.0,3.58836088]
[1673634631145,0.00725801,19303.0,19302.0,3.48836088]
[1673634632373,0.00715801,19303.0,19302.0,2.86683075]
[1673634632623,0.00715801,19303.0,19302.0,2.80346906]
[1673634633867,0.00715801,19303.0,19302.0,3.16596582]
[1673634634345,0.00715801,19303.0,19302.0,3.49040582]
[1673634634585,0.00715801,19303.0,19302.0,3.49085056]
[1673634634900,0.00715801,19303.0,19302.0,3.16641056]
[1673634635132,0.00715801,19303.0,19302.0,3.49085056]
[1673634635889,0.00715801,19303.0,19302.0,1.99539876]
[1673634636138,0.19177607,19303.0,19302.0,1.308462]
[1673634636611,0.19177607,19303.0,19302.0,1.99539876]
[1673634636861,0.19177607,19303.0,19302.0,1.308462]
[1673634639855,0.19177607,19303.0,19302.0,3.1547763]
[1673634639856,0.00715801,19303.0,19302.0,3.1547763]
[1673634640091,0.00715801,19303.0,19302.0,3.4792163]
[1673634640830,0.00715801,19303.0,19302.0,3.3459163]
[1673634641070,0.00644221,19303.0,19302.0,2.96508474]
[1673634642791,0.00644221,19303.0,19302.0,2.285483]
[1673634643287,0.00644221,19303.0,19302.0,2.28592774]
[1673634643758,0.00644221,19303.0,19302.0,2.78556723]
[1673634644529,0.00644221,19303.0,19302.0,2.81427967]
[1673634644769,0.00644221,19303.0,19302.0,2.58592774]
[1673634645009,0.00644221,19303.0,19302.0,3.44545558]
[1673634645265,0.00971253,19308.0,19303.0,0.14355779]
[1673634645510,0.24386277,19308.0,19306.0,0.46437862]
[1673634645745,0.24386277,19308.0,19307.0,1.34098576]
[1673634646012,0.24386277,19308.0,19307.0,1.035892]
[1673634646741,0.24386277,19308.0,19307.0,1.50027062]
[1673634647007,0.24386277,19308.0,19307.0,1.51027062]
[1673634647234,0.25186277,19308.0,19307.0,1.51027062]
[1673634647553,0.25186277,19308.0,19307.0,1.045892]
[1673634647795,0.01771253,19308.0,19307.0,1.045892]
[1673634648509,0.01771253,19308.0,19307.0,1.563838]
[1673634648766,0.01771253,19308.0,19307.0,2.86402078]
[1673634648992,0.01771253,19308.0,19307.0,3.85992012]
[1673634649237,0.01771253,19308.0,19307.0,2.64649414]
[1673634649472,0.01771253,19308.0,19307.0,3.33217819]
[1673634649473,0.01594128,19308.0,19307.0,3.33217819]
[1673634649724,0.00794128,19308.0,19307.0,3.84841089]
[1673634649957,0.00794128,19308.0,19307.0,3.85691089]
[1673634650241,0.01394128,19308.0,19307.0,4.29761089]
[1673634650487,0.01394128,19308.0,19307.0,4.1941686]
[1673634650956,0.00794128,19308.0,19307.0,4.1871686]
[1673634651193,0.00794128,19308.0,19307.0,4.3238686]
[1673634651439,0.00794128,19308.0,19307.0,4.82806547]
[1673634651685,0.00794128,19308.0,19307.0,4.1848686]
[1673634651935,0.00894128,19308.0,19307.0,4.3228686]
[1673634652672,0.00460637,19308.0,19307.0,4.1848686]
[1673634652929,0.00560637,19308.0,19307.0,4.3228686]
[1673634653434,3.7e-07,19308.0,19307.0,5.1277686]
[1673634653682,6e-05,19311.0,19308.0,0.1]
[1673634653942,6e-05,19311.0,19309.0,3.97056122]
[1673634654193,6e-05,19311.0,19310.0,2.42308022]
[1673634654449,0.0106328,19314.0,19311.0,0.1]
[1673634654690,0.0106328,19314.0,19312.0,3.75847352]
[1673634654953,0.0106328,19314.0,19313.0,0.324247]
[1673634655192,0.0106328,19314.0,19313.0,1.459817]
[1673634655442,0.01083852,19315.0,19313.0,2.05184327]